bitfinex-derivatives/quotes_SOLF0:USTF0_20251025
["timestamp","ask_amount","ask_price","bid_price","bid_amount"]
[1761400096279,3.96156373,192.51,192.49,2.85]
[1761400096486,1.20258787,192.53,192.49,2.85]
[1761400096687,3.96153649,192.52,192.49,2.85]
[1761400096985,3.96153649,192.51,192.49,2.85]
[1761400097179,1.20258787,192.53,192.49,2.85]
[1761400097379,3.96150425,192.52,192.49,2.85]
[1761400097581,3.96150425,192.51,192.49,2.85]
[1761400097785,1.20258787,192.53,192.49,2.85]
[1761400098082,3.97294433,192.52,192.49,2.85]
[1761400098380,3.97294433,192.51,192.49,2.85]
[1761400098581,1.20258787,192.53,192.49,2.85]
[1761400098781,3.97295083,192.52,192.49,2.85]
[1761400098978,3.97295083,192.51,192.49,2.85]
[1761400099180,1.20258787,192.53,192.49,2.85]
[1761400099386,3.97291242,192.52,192.49,2.85]
[1761400099593,3.97291242,192.51,192.49,2.85]
[1761400099888,1.20258787,192.53,192.49,2.85]
[1761400100095,3.97280565,192.52,192.49,2.85]
[1761400100284,3.97280565,192.51,192.49,2.85]
[1761400100484,1.20258787,192.53,192.49,2.85]
[1761400100689,3.97279198,192.52,192.49,2.85]
[1761400100889,3.97279198,192.51,192.49,2.85]
[1761400101084,1.20258787,192.53,192.49,2.85]
[1761400101281,3.97273198,192.52,192.49,2.85]
[1761400101485,3.97273198,192.51,192.49,2.85]
[1761400101689,3.97273198,192.5,192.49,2.85]
[1761400104596,3.97273198,192.5,192.48,6.91]
[1761400104798,4.77890542,192.54,192.49,2.85]
[1761400105000,3.97176595,192.53,192.49,2.85]
[1761400105204,3.97176595,192.52,192.49,2.85]
[1761400105388,3.97176595,192.51,192.49,2.85]
[1761400105687,3.97176595,192.5,192.49,2.85]
[1761400108505,3.97243004,192.54,192.49,2.85]
[1761400108694,4.77890542,192.58,192.49,2.85]
[1761400108894,3.97278586,192.57,192.49,2.85]
[1761400109102,3.97278586,192.56,192.49,2.85]
[1761400109302,3.97278586,192.55,192.49,2.85]
[1761400109506,3.97278586,192.54,192.49,2.85]
[1761400109801,4.77890542,192.58,192.49,2.85]
[1761400109995,3.9726466,192.57,192.49,2.85]
[1761400110197,3.9726466,192.56,192.49,2.85]
[1761400110395,3.9726466,192.55,192.49,2.85]
[1761400110591,3.9726466,192.54,192.49,2.85]
[1761400110796,4.80034746,192.61,192.49,2.85]
[1761400111399,4.80034746,192.62,192.49,2.85]
[1761400111607,4.80034746,192.62,192.51,2.85]
[1761400111901,9.22084728,192.62,192.52,2.85]
[1761400112204,4.80034746,192.62,192.52,2.85]
[1761400112703,9.21968104,192.62,192.52,2.85]
[1761400112903,4.80034746,192.62,192.52,2.85]
[1761400113305,4.80034746,192.63,192.52,2.85]
[1761400115106,4.80034746,192.64,192.52,2.85]
[1761400118308,9.21853566,192.64,192.52,2.85]
[1761400118507,4.80034746,192.64,192.52,2.85]
[1761400119207,9.21317402,192.64,192.52,2.85]
[1761400119407,4.80034746,192.64,192.52,2.85]
[1761400120006,9.21231584,192.64,192.52,2.85]
[1761400120207,4.80034746,192.64,192.52,2.85]
[1761400121308,11.09107127,192.65,192.52,2.85]
[1761400121512,6.67990244,192.65,192.52,2.85]
[1761400121902,11.09032384,192.65,192.52,2.85]
[1761400122098,6.67990244,192.65,192.52,2.85]
[1761400122500,11.08962326,192.65,192.52,2.85]
[1761400122705,3.9618251,192.64,192.52,2.85]
[1761400123007,3.9618251,192.63,192.52,2.85]
[1761400123309,3.9618251,192.62,192.52,2.85]
[1761400123498,3.9618251,192.61,192.52,2.85]
[1761400123700,3.9618251,192.6,192.52,2.85]
[1761400124012,3.9618251,192.64,192.52,2.85]
[1761400124310,3.9618251,192.63,192.52,2.85]
[1761400124510,3.9618251,192.62,192.52,2.85]
[1761400124712,3.9618251,192.61,192.52,2.85]
[1761400125005,3.9618251,192.64,192.52,2.85]
[1761400125210,3.9618251,192.63,192.52,2.85]
[1761400125403,3.9618251,192.62,192.52,2.85]
[1761400125605,3.9618251,192.61,192.52,2.85]
[1761400125804,6.67990244,192.65,192.52,2.85]
[1761400126005,3.96088652,192.64,192.52,2.85]
[1761400126201,3.96088652,192.63,192.52,2.85]
[1761400126409,3.96088652,192.62,192.52,2.85]
[1761400126609,3.96088652,192.61,192.52,2.85]
[1761400126810,3.96088652,192.64,192.52,2.85]
[1761400127012,3.96088652,192.63,192.52,2.85]
[1761400127209,3.96088652,192.62,192.52,2.85]
[1761400127409,3.96088652,192.61,192.52,2.85]
[1761400127610,3.96088652,192.64,192.54,2.87]
[1761400127811,3.96088652,192.63,192.54,2.87]
[1761400128011,3.96088652,192.62,192.54,2.87]
[1761400128213,3.96088652,192.61,192.54,2.87]
[1761400128414,3.96088652,192.64,192.54,2.87]
[1761400128614,3.96088652,192.63,192.54,2.87]
[1761400128914,6.67990244,192.65,192.54,2.87]
[1761400128915,3.96088652,192.62,192.54,2.87]
[1761400129115,3.96088652,192.61,192.54,2.87]
[1761400129315,3.96088652,192.64,192.54,2.87]
[1761400129609,3.96088652,192.63,192.54,2.87]
[1761400129810,3.96088652,192.62,192.54,2.87]
[1761400130015,3.96088652,192.61,192.54,2.87]
[1761400130314,3.96088652,192.64,192.54,2.87]
[1761400130517,3.96088652,192.63,192.54,2.87]
[1761400130712,3.96088652,192.62,192.54,2.87]
[1761400130913,3.96088652,192.61,192.54,2.87]
[1761400131112,3.96088652,192.64,192.54,2.87]
[1761400131308,3.96088652,192.63,192.54,2.87]
[1761400131505,3.96088652,192.62,192.54,2.87]
[1761400131709,3.96088652,192.61,192.54,2.87]
[1761400131908,3.96088652,192.64,192.54,2.87]
[1761400132120,3.96088652,192.63,192.54,2.87]
[1761400132312,3.96088652,192.62,192.54,2.87]
[1761400132513,3.96088652,192.61,192.54,2.87]
[1761400132816,1.87955498,192.65,192.54,2.87]
[1761400133022,3.94863114,192.64,192.54,2.87]
[1761400133218,3.94863114,192.63,192.54,2.87]
[1761400133422,3.94863114,192.62,192.54,2.87]
[1761400133722,3.94863114,192.61,192.54,2.87]
[1761400133924,3.94863114,192.64,192.54,2.87]
[1761400134120,3.94863114,192.63,192.54,2.87]
[1761400134322,3.94863114,192.62,192.54,2.87]
[1761400134621,3.94863114,192.61,192.54,2.87]
[1761400134821,3.94863114,192.64,192.54,2.87]
[1761400135121,3.94863114,192.63,192.54,2.87]
[1761400135323,3.94863114,192.62,192.54,2.87]
[1761400135526,3.94863114,192.61,192.54,2.87]
[1761400135727,3.94863114,192.64,192.54,2.87]
[1761400135922,3.94863114,192.63,192.54,2.87]
[1761400136124,3.94863114,192.62,192.54,2.87]
[1761400136325,3.94863114,192.61,192.54,2.87]
[1761400136524,3.94863114,192.64,192.54,2.87]
[1761400136823,3.94863114,192.63,192.54,2.87]
[1761400137020,3.94863114,192.62,192.54,2.87]
[1761400137222,3.94863114,192.61,192.54,2.87]
[1761400137522,3.94863114,192.64,192.54,2.87]
[1761400137716,3.94863114,192.63,192.54,2.87]
[1761400137915,3.94863114,192.62,192.54,2.87]
[1761400138125,3.94863114,192.61,192.54,2.87]
[1761400138327,3.94863114,192.64,192.54,2.87]
[1761400138517,3.94863114,192.63,192.54,2.87]
[1761400138721,3.94863114,192.62,192.54,2.87]
[1761400138926,3.94863114,192.61,192.54,2.87]
[1761400139131,3.94863114,192.64,192.54,2.87]
[1761400139323,3.94863114,192.63,192.54,2.87]
[1761400139523,3.94863114,192.62,192.54,2.87]
[1761400139723,3.94863114,192.61,192.54,2.87]
[1761400139925,3.94863114,192.64,192.54,2.87]
[1761400140124,3.94863114,192.63,192.54,2.87]
[1761400140326,3.94863114,192.62,192.54,2.87]
[1761400140531,3.94863114,192.61,192.54,2.87]
[1761400140831,6.66705159,192.65,192.54,2.87]
[1761400141128,1.87955498,192.61,192.53,4.98]
[1761400141331,3.95373364,192.6,192.53,4.98]
[1761400141629,3.95373364,192.59,192.53,4.98]
[1761400141830,1.87955498,192.57,192.53,4.98]
[1761400142024,5.83328862,192.57,192.53,4.98]
[1761400142225,1.87955498,192.57,192.53,4.98]
[1761400142534,3.95333666,192.56,192.53,4.98]
[1761400144029,3.95388124,192.56,192.53,4.98]
[1761400144334,1.87955498,192.57,192.53,4.98]
[1761400144533,3.95438137,192.56,192.53,4.98]
[1761400144735,1.87955498,192.57,192.53,4.98]
[1761400144931,3.95438137,192.56,192.53,4.98]
[1761400145133,1.87955498,192.57,192.53,4.98]
[1761400145432,3.95429808,192.56,192.53,4.98]
[1761400145633,1.87955498,192.57,192.53,4.98]
[1761400145825,3.95473737,192.56,192.53,7.6]
[1761400146028,1.87955498,192.57,192.53,7.6]
[1761400146230,3.95473763,192.56,192.53,7.6]
[1761400146531,1.87955498,192.57,192.53,7.6]
[1761400146732,3.95435968,192.56,192.53,7.6]
[1761400146938,1.87955498,192.57,192.53,7.6]
[1761400147234,3.95435968,192.56,192.53,7.6]
[1761400147434,3.95435968,192.55,192.53,7.6]
[1761400147637,3.95435968,192.56,192.53,7.6]
[1761400147827,1.87955498,192.57,192.53,7.6]
[1761400147828,3.95435968,192.55,192.53,7.6]
[1761400148027,3.95435968,192.56,192.53,7.6]
[1761400148222,3.95435968,192.55,192.53,7.6]
[1761400148428,1.87955498,192.57,192.53,7.6]
[1761400148632,3.95663583,192.56,192.53,7.6]
[1761400148936,3.95663583,192.55,192.53,7.6]
[1761400149130,1.87955498,192.57,192.53,7.6]
[1761400149331,3.95753057,192.56,192.53,7.6]
[1761400149525,3.95753057,192.55,192.53,7.6]
[1761400149729,1.87955498,192.57,192.53,7.6]
[1761400150029,3.95831676,192.56,192.53,7.6]
[1761400150230,3.95831676,192.55,192.53,7.6]
[1761400150530,1.87955498,192.57,192.53,7.6]
[1761400150837,3.95933619,192.56,192.53,7.6]
[1761400151038,3.95933619,192.55,192.53,7.6]
[1761400151335,1.87955498,192.57,192.53,7.6]
[1761400151536,3.96020567,192.56,192.53,7.6]
[1761400151836,3.96020567,192.55,192.53,7.6]
[1761400152038,1.87955498,192.57,192.53,7.6]
[1761400152227,3.95947799,192.56,192.53,7.6]
[1761400152429,3.95947799,192.55,192.53,7.84]
[1761400152630,1.87955498,192.57,192.54,2.86]
[1761400152938,3.96045679,192.56,192.54,2.86]
[1761400153140,3.96045679,192.55,192.54,2.86]
[1761400155838,4.78749661,192.6,192.54,2.86]
[1761400156032,3.96263391,192.59,192.54,2.86]
[1761400156233,3.96263391,192.58,192.54,2.86]
[1761400156434,3.96263391,192.57,192.54,2.86]
[1761400156633,3.96263391,192.56,192.54,2.86]
[1761400156835,6.66705159,192.61,192.54,2.86]
[1761400157038,3.96314059,192.6,192.54,2.86]
[1761400157238,3.96314059,192.59,192.54,2.86]
[1761400157437,3.96314059,192.58,192.54,2.86]
[1761400157638,3.96314059,192.57,192.54,2.86]
[1761400157839,3.96314059,192.56,192.54,2.86]
[1761400158039,6.66705159,192.61,192.54,2.86]
[1761400158234,3.97380885,192.6,192.54,2.86]
[1761400158441,3.97380885,192.59,192.54,2.86]
[1761400158631,3.97380885,192.58,192.54,2.86]
[1761400158835,3.97380885,192.57,192.54,2.86]
[1761400159036,6.66705159,192.61,192.54,2.86]
[1761400159237,3.97388526,192.6,192.54,2.86]
[1761400159438,3.97388526,192.59,192.54,2.86]
[1761400159737,3.97388526,192.58,192.54,2.86]
[1761400159938,3.97388526,192.57,192.54,2.86]
[1761400160137,6.66705159,192.61,192.54,2.86]
[1761400160338,3.97396807,192.6,192.54,2.86]
[1761400160539,3.97396807,192.59,192.54,2.86]
[1761400160837,3.97396807,192.58,192.54,2.86]
[1761400161039,3.97396807,192.57,192.54,2.86]
[1761400161335,6.66705159,192.61,192.54,2.86]
[1761400161638,3.97415387,192.6,192.54,2.86]
[1761400161837,3.97415387,192.59,192.54,2.86]
[1761400162136,3.97415387,192.58,192.54,2.86]
[1761400162336,3.97415387,192.57,192.54,2.86]
[1761400162542,3.97415387,192.56,192.54,2.86]
[1761400162745,6.66705159,192.61,192.54,2.86]
[1761400163043,3.97425717,192.6,192.54,2.86]
[1761400163243,3.97425717,192.59,192.54,2.86]
[1761400163442,3.97425717,192.58,192.54,2.86]
[1761400163744,3.97425717,192.57,192.56,2.86]
[1761400164744,5.17646854,192.57,192.56,2.86]
[1761400191073,3.97425717,192.57,192.56,2.86]
[1761400193080,1.20221137,192.57,192.56,2.86]
[1761400202883,5.18116354,192.57,192.56,2.86]
[1761400207084,5.18116354,192.57,192.47,4.6751]
[1761400207284,1.20221137,192.53,192.47,4.6751]
[1761400207685,1.20221137,192.53,192.43,123.42]
[1761400207686,1.20221137,192.53,192.48,4.675]
[1761400209194,1.20221137,192.53,192.49,2.8]
[1761400211894,1.20221137,192.56,192.5,2.8]
[1761400212800,1.20221137,192.56,192.52,2.8]
[1761400217695,1.20221137,192.59,192.52,2.8]
[1761400217896,3.97822354,192.58,192.52,2.8]
[1761400218098,3.97822354,192.57,192.52,2.8]
[1761400218292,1.20221137,192.59,192.52,2.8]
[1761400218492,3.96939278,192.58,192.52,2.8]
[1761400218694,3.96939278,192.57,192.52,2.8]
[1761400218899,1.20221137,192.59,192.52,2.8]
[1761400219200,3.96994451,192.58,192.52,2.8]
[1761400219400,3.96994451,192.57,192.52,2.8]
[1761400219598,1.20221137,192.59,192.52,2.8]
[1761400219794,3.97005859,192.58,192.52,2.8]
[1761400219991,3.97005859,192.57,192.52,2.8]
[1761400220196,1.20221137,192.59,192.52,2.8]
[1761400220401,3.97003922,192.58,192.52,2.8]
[1761400220597,3.97003922,192.57,192.52,2.8]
[1761400220797,1.20221137,192.59,192.52,2.8]
[1761400221096,3.97003922,192.58,192.52,2.8]
[1761400221296,3.97003922,192.57,192.52,2.8]
[1761400221503,1.20221137,192.59,192.54,2.8]
[1761400221708,3.97033977,192.58,192.54,2.8]
[1761400221902,1.20221137,192.59,192.54,2.8]
[1761400222206,3.9703774,192.58,192.54,2.8]
[1761400222406,1.20221137,192.59,192.54,2.8]
[1761400222605,3.97036476,192.58,192.54,2.8]
[1761400222805,1.20221137,192.59,192.54,2.8]
[1761400223009,3.97036476,192.58,192.54,2.8]
[1761400223199,4.52127952,192.61,192.54,2.8]
[1761400223400,3.97115801,192.6,192.54,2.8]
[1761400223700,3.97115801,192.59,192.54,2.8]
[1761400223903,3.97115801,192.58,192.54,2.8]
[1761400224107,4.52127952,192.61,192.54,2.8]
[1761400224301,3.97115827,192.6,192.54,2.8]
[1761400224508,3.97115827,192.59,192.54,2.8]
[1761400224706,3.97115827,192.58,192.54,2.8]
[1761400224900,4.52127952,192.61,192.54,2.8]
[1761400225101,3.97120111,192.6,192.54,2.8]
[1761400225300,3.97120111,192.59,192.54,2.8]
[1761400225501,3.97120111,192.58,192.54,2.8]
[1761400225708,4.52127952,192.61,192.54,2.8]
[1761400225908,3.97125275,192.6,192.54,2.8]
[1761400226113,3.97125275,192.59,192.54,2.8]
[1761400226410,3.97125275,192.58,192.54,2.8]
[1761400226597,3.97125275,192.57,192.54,2.8]
[1761400226797,4.52127952,192.61,192.54,2.8]
[1761400227007,3.97246638,192.6,192.54,2.8]
[1761400227208,3.97246638,192.59,192.54,2.8]
[1761400227511,3.97246638,192.58,192.54,2.8]
[1761400227710,3.97246638,192.57,192.54,2.8]
[1761400227912,4.52127952,192.61,192.54,2.8]
[1761400228112,3.97322147,192.6,192.54,2.8]
[1761400228309,3.97322147,192.59,192.54,2.8]
[1761400228510,3.97322147,192.58,192.54,2.8]
[1761400228805,3.97322147,192.57,192.54,2.8]
[1761400229011,4.52127952,192.61,192.54,2.8]
[1761400229204,3.97330183,192.6,192.54,2.8]
[1761400229407,3.97330183,192.59,192.54,2.8]
[1761400229608,3.97330183,192.58,192.54,2.8]
[1761400229810,3.97330183,192.57,192.54,2.8]
[1761400230012,4.52127952,192.61,192.54,2.8]
[1761400230310,3.97339275,192.6,192.54,2.8]
[1761400230510,3.97339275,192.59,192.54,2.8]
[1761400230710,3.97339275,192.58,192.54,2.8]
[1761400230914,3.97339275,192.57,192.54,2.8]
[1761400231116,3.97261451,192.56,192.54,65.44]
[1761400231313,4.52127952,192.6,192.54,65.44]
[1761400231507,3.97268515,192.59,192.54,65.44]
[1761400231711,3.97268515,192.58,192.54,65.44]
[1761400232014,3.97268515,192.57,192.54,65.44]
[1761400232216,3.97268515,192.56,192.54,65.44]
[1761400232515,4.52127952,192.6,192.54,65.44]
[1761400232703,3.97405834,192.59,192.54,65.44]
[1761400232903,3.97405834,192.58,192.52,2.8]
[1761400233110,3.97405834,192.57,192.52,2.8]
[1761400233309,3.97405834,192.56,192.52,2.8]
[1761400233613,3.97405834,192.55,192.52,2.8]
[1761400233814,4.52127952,192.59,192.52,2.8]
[1761400234014,3.9740255,192.58,192.52,2.8]
[1761400234218,3.9740255,192.57,192.52,2.8]
[1761400234417,3.9740255,192.56,192.52,2.8]
[1761400234618,3.9740255,192.55,192.52,2.8]
[1761400234822,4.52127952,192.59,192.52,2.8]
[1761400235121,3.97276565,192.58,192.52,2.8]
[1761400235307,3.97276565,192.57,192.52,2.8]
[1761400235509,3.97276565,192.56,192.52,2.8]
[1761400235709,3.97276565,192.55,192.52,2.8]
[1761400236005,4.52127952,192.59,192.52,2.8]
[1761400236209,3.972446,192.58,192.52,2.8]
[1761400236410,8.49372552,192.57,192.49,81.12731265]
[1761400236605,8.49372552,192.56,192.49,143.76731265]
[1761400236814,3.972446,192.55,192.49,143.76731265]
[1761400237016,3.972446,192.54,192.5,2.8]
[1761400237219,3.972446,192.53,192.5,2.8]
[1761400237414,4.78749661,192.57,192.5,2.8]
[1761400237616,3.97000519,192.56,192.5,2.8]
[1761400237820,3.97000519,192.55,192.5,2.8]
[1761400238023,3.97000519,192.54,192.5,2.8]
[1761400238216,3.97000519,192.53,192.5,2.8]
[1761400238419,4.5203382,192.57,192.5,2.8]
[1761400238617,3.96902223,192.56,192.5,2.8]
[1761400238918,3.96902223,192.55,192.5,2.8]
[1761400239116,3.96902223,192.54,192.5,2.8]
[1761400239316,4.5203382,192.57,192.5,2.8]
[1761400239612,3.96843104,192.56,192.5,2.8]
[1761400239818,3.96843104,192.55,192.5,2.8]
[1761400240023,3.96843104,192.54,192.5,2.8]
[1761400240222,4.5203382,192.57,192.5,2.8]
[1761400240522,3.96781234,192.56,192.5,2.8]
[1761400240724,3.96781234,192.55,192.5,2.8]
[1761400240922,3.96781234,192.54,192.5,2.8]
[1761400241124,4.78749661,192.58,192.5,2.8]
[1761400241325,3.96732156,192.57,192.5,2.8]
[1761400241526,3.96732156,192.56,192.5,2.8]
[1761400241725,3.96732156,192.55,192.5,2.8]
[1761400241926,3.96732156,192.54,192.5,2.8]
[1761400242223,4.78749661,192.58,192.5,2.8]
[1761400242429,3.96717108,192.57,192.5,2.8]
[1761400242726,3.96717108,192.56,192.5,2.8]
[1761400242919,3.96717108,192.55,192.51,5.25]
[1761400243126,3.96717108,192.54,192.52,2.88]
[1761400243328,4.78749661,192.58,192.52,2.88]
[1761400243631,3.9666879,192.57,192.52,2.88]
[1761400243827,3.9666879,192.56,192.52,2.88]
[1761400244129,3.9666879,192.55,192.52,2.88]
[1761400244327,3.9666879,192.54,192.52,2.88]
[1761400244620,4.78749661,192.59,192.53,62.64]
[1761400244825,3.96684681,192.58,192.54,2.88]
[1761400245024,3.96684681,192.57,192.54,2.88]
[1761400245328,4.78749661,192.61,192.54,2.88]
[1761400245528,3.96759049,192.6,192.54,2.88]
[1761400245728,3.96759049,192.59,192.54,2.88]
[1761400245928,3.96759049,192.58,192.54,2.88]
[1761400246128,3.96759049,192.57,192.54,2.88]
[1761400246428,4.51859089,192.6,192.54,2.88]
[1761400246721,3.96792136,192.59,192.54,2.88]
[1761400246926,3.96792136,192.58,192.54,2.88]
[1761400247127,3.96792136,192.57,192.54,2.88]
[1761400247328,4.78749661,192.61,192.54,2.88]
[1761400247529,3.96802075,192.6,192.54,2.88]
[1761400247728,3.96802075,192.59,192.54,2.88]
[1761400247925,3.96802075,192.58,192.54,2.88]
[1761400248123,3.96802075,192.57,192.54,2.88]
[1761400248322,4.50756519,192.6,192.54,2.88]
[1761400248523,3.97445572,192.59,192.54,2.88]
[1761400248728,3.97445572,192.58,192.54,2.88]
[1761400248919,3.97445572,192.57,192.54,2.88]
[1761400249117,4.50756519,192.6,192.54,2.88]
[1761400249324,3.97437211,192.59,192.54,2.88]
[1761400249523,3.97437211,192.58,192.54,2.88]
[1761400249725,3.97437211,192.57,192.54,2.88]
[1761400249925,4.50691511,192.6,192.54,2.88]
[1761400250127,3.97380043,192.59,192.54,2.88]
[1761400250331,3.97380043,192.58,192.54,2.88]
[1761400250530,3.97380043,192.57,192.54,2.88]
[1761400250726,4.50689348,192.61,192.54,2.88]
[1761400250926,3.97368326,192.6,192.54,2.88]
[1761400251131,3.97368326,192.59,192.54,2.88]
[1761400251431,3.97368326,192.58,192.54,2.88]
[1761400251626,3.97368326,192.57,192.54,2.88]
[1761400251932,4.50689348,192.61,192.54,2.88]
[1761400252126,3.97346039,192.6,192.54,2.88]
[1761400252431,3.97346039,192.59,192.54,2.88]
[1761400252730,3.97346039,192.58,192.54,2.88]
[1761400252932,3.97346039,192.57,192.54,2.88]
[1761400253231,4.50689348,192.61,192.54,2.88]
[1761400253421,3.97315605,192.6,192.54,2.88]
[1761400253626,3.97315605,192.59,192.54,2.88]
[1761400253929,4.50689348,192.61,192.54,2.88]
[1761400253930,3.97315605,192.58,192.54,2.88]
[1761400254131,4.78749661,192.62,192.54,2.88]
[1761400254333,3.972667,192.61,192.54,2.88]
[1761400254529,3.972667,192.6,192.54,2.88]
[1761400254831,3.972667,192.59,192.54,2.88]
[1761400255030,3.972667,192.58,192.54,2.88]
[1761400255330,4.78749661,192.62,192.54,2.88]
[1761400255530,3.97258308,192.61,192.54,2.88]
[1761400255837,3.97258308,192.6,192.54,2.88]
[1761400256028,3.97258308,192.59,192.54,2.88]
[1761400256229,3.97258308,192.58,192.54,2.88]
[1761400256433,4.78749661,192.62,192.54,2.88]
[1761400256728,3.97254248,192.61,192.54,2.88]
[1761400256929,3.97254248,192.6,192.54,2.88]
[1761400257229,3.97254248,192.59,192.54,2.88]
[1761400257428,3.97254248,192.58,192.54,2.88]
[1761400257626,4.78749661,192.62,192.54,2.88]
[1761400257829,3.97258795,192.61,192.54,2.88]
[1761400258023,3.97258795,192.6,192.54,2.88]
[1761400258222,3.97258795,192.59,192.54,2.88]
[1761400258427,3.97258795,192.58,192.54,2.88]
[1761400258635,4.78749661,192.62,192.54,2.88]
[1761400258835,3.9725453,192.61,192.54,2.88]
[1761400259036,3.9725453,192.6,192.54,2.88]
[1761400259236,3.9725453,192.59,192.54,2.88]
[1761400259435,3.9725453,192.58,192.54,2.88]
[1761400259635,4.78749661,192.62,192.54,2.88]
[1761400259836,3.97250829,192.61,192.54,2.88]
[1761400260036,3.97250829,192.6,192.54,2.88]
[1761400260338,3.97250829,192.59,192.54,2.88]
[1761400260529,3.97250829,192.58,192.54,2.88]
[1761400260729,4.78749661,192.62,192.54,2.88]
[1761400260932,3.97240451,192.61,192.54,2.88]
[1761400261240,3.97240451,192.6,192.54,2.88]
[1761400261439,3.97240451,192.59,192.54,2.88]
[1761400261639,3.97240451,192.58,192.54,2.88]
[1761400261841,4.78749661,192.62,192.54,2.88]
[1761400262040,3.97245318,192.61,192.54,2.88]
[1761400262240,4.78749661,192.62,192.54,2.88]
[1761400262241,3.97245318,192.6,192.54,2.88]
[1761400262441,3.97245318,192.59,192.54,2.88]
[1761400262643,3.97245318,192.58,192.54,2.88]
[1761400262844,4.78749661,192.62,192.54,2.88]
[1761400263044,3.97335157,192.61,192.54,2.88]
[1761400263342,3.97335157,192.6,192.56,2.7]
[1761400263540,3.97335157,192.59,192.56,2.7]
[1761400263741,3.97335157,192.58,192.56,2.7]
[1761400263941,4.78749661,192.62,192.56,2.7]
[1761400264140,3.97331526,192.61,192.56,2.7]
[1761400264440,3.97331526,192.6,192.56,2.7]
[1761400264744,3.97331526,192.59,192.56,2.7]
[1761400264941,3.97331526,192.58,192.56,2.7]
[1761400265136,4.78749661,192.62,192.56,2.7]
[1761400265437,3.97327963,192.61,192.56,2.7]
[1761400265638,3.97327963,192.6,192.56,2.7]
[1761400265941,3.97327963,192.59,192.56,2.7]
[1761400266141,3.97327963,192.58,192.56,2.7]
[1761400266342,4.78749661,192.62,192.56,2.7]
[1761400266546,3.97376643,192.61,192.56,2.7]
[1761400266753,3.97376643,192.6,192.56,2.7]
[1761400266940,3.97376643,192.59,192.56,2.7]
[1761400267136,3.97376643,192.58,192.56,2.7]
[1761400267349,4.78749661,192.62,192.56,2.7]
[1761400267546,3.97438384,192.61,192.56,2.7]
[1761400267746,3.97438384,192.6,192.56,2.7]
[1761400267947,3.97438384,192.59,192.56,2.7]
[1761400268147,3.97438384,192.58,192.56,2.7]
[1761400268348,4.78749661,192.62,192.56,2.7]
[1761400268544,3.97444033,192.61,192.56,2.7]
[1761400268747,3.97444033,192.6,192.56,2.7]
[1761400268948,3.97444033,192.59,192.56,2.7]
[1761400269146,3.97444033,192.58,192.56,2.7]
[1761400269346,4.78749661,192.62,192.56,2.7]
[1761400269551,3.97449539,192.61,192.56,2.7]
[1761400269742,3.97449539,192.6,192.56,2.7]
[1761400269943,3.97449539,192.59,192.56,2.7]
[1761400270246,3.97453057,192.58,192.56,2.7]
[1761400270443,4.53084146,192.62,192.56,2.7]
[1761400270644,3.97453938,192.61,192.56,2.7]
[1761400270845,3.97453938,192.6,192.56,2.7]
[1761400271045,3.97453938,192.59,192.56,2.7]
[1761400271243,3.97453938,192.58,192.56,2.7]
[1761400271447,4.53084146,192.62,192.56,2.7]
[1761400271643,3.97454024,192.61,192.56,2.7]
[1761400271849,3.97454024,192.6,192.56,2.7]
[1761400272156,3.97454024,192.59,192.56,2.7]
[1761400272356,3.97454024,192.58,192.56,2.7]
[1761400272558,4.53084146,192.62,192.56,2.7]